{"text_format":"1","workbook":"xlsx","n_sheets":2,"sheets":["LORU","Ark2"],"not_rendered":{"charts":0,"images":5,"macros":1,"external_links":0,"defined_names":0,"comments":0,"pivot_tables":0},"unopened":[],"bounds":{"document_bytes":16777216,"sheet_cells":100000,"rows_first":2000,"rows_last":500,"rows_between":2000,"halvings":0,"cell_chars":16384,"cell_head_chars":4096},"cells_cut":0,"cells_raw":0,"read":"whole","date_system":"1900"}

{"sheet":"LORU","index":0,"n_rows":39,"n_cols":22,"rows_kept":39,"cut":false,"hidden":false,"merged":[]}
["09-05-2011/SBR_THH"]
[null,null,null,null,null,null,null,null,null,null,"e + f  udfyld kun et felt ",null,null,null,null,null,"Set fra a x b      'grøn ende'     ' blå er længst væk'"]
[null,null,null,null,null,null,null,null,null,null,"g + h udfyld kun et felt",null,null,null,null,null,"  VENSTRE",null,null,null,"HØJRE"]
[null,null,null,null,null,null,null,null,null,null,null,"Resultat aflæses ved",null,"T6",null,null,null,null,{"$f":"E12","v":0}]
[]
[]
[null,null,null,null,null,null,null,null,null,null,null,null,null,null,null,null,null,null,null,null,null,"  OVER"]
[null,null,null,null,"LORU"]
[null,null,null,null,null,null,null,null,null,null,"HØJRE","VENSTRE","UNDER","OVER","Set fra a*b"]
[null,null,null,null,null,null,null,null,null,null,"venstre","højre","under","over","Set fra ød"]
[null,null,null,null,"a",null,"b","c",null,"ød","e","f","g","h"]
[null,null,null,null,null,"x",null,null,"x",null,"?","?","?","?",null,null,null,null,{"$f":"J12","v":0},null,null,{"$f":"G12","v":0}]
[null,null,null,null,null,null,null,null,null,"T1",{"$f":"(E12-J12)/2","v":0},{"$f":"K13","v":0},{"$f":"(G12-J12)/2","v":0},{"$f":"M13","v":0}]
[null,null,null,null,null,null,null,null,null,"T2",{"$f":"E12-J12","v":0},0,{"$f":"G12-J12","v":0},0]
[null,null,null,null,null,null,null,null,null,"T3",0,{"$f":"K14","v":0},{"$f":"M14","v":0},0]
[null,null,null,null,null,null,null,null,null,"T4",{"$f":"K13","v":0},{"$f":"K16","v":0},{"$f":"M14","v":0},0]
[null,null,null,null,null,null,null,null,null,"T5",0,{"$f":"K14","v":0},{"$f":"M13","v":0},{"$f":"M17","v":0}]
[null,null,null,null,null,null,null,null,null,"T6",{"$f":"IF(AND($K$12=\"?\",$L$12<>\"?\"),($J$12*-1)+($L$12*-1)+$E$12,$K$12)","v":"?"},{"$f":"IF(AND($K$12<>\"?\",$L$12=\"?\"),($J$12*-1)+($K$12*-1)+$E$12,$L$12)","v":"?"},{"$f":"IF(AND($M$12=\"?\",$N$12<>\"?\"),($J$12*-1)+($N$12*-1)+$G$12,$M$12)","v":"?"},{"$f":"IF(AND($M$12<>\"?\",$N$12=\"?\"),($J$12*-1)+($M$12*-1)+$G$12,$N$12)","v":"?"}]
[null,null,null,null,null,null,null,null,null,null,{"$f":"IF(OR(K12=\"?\",L12=\"?\"),\"Ok\",\"Fejl\")","v":"Ok"},{"$f":"IF(OR(K12=\"?\",L12=\"?\"),\"Ok\",\"Fejl\")","v":"Ok"},{"$f":"IF(OR(M12=\"?\",N12=\"?\"),\"Ok\",\"Fejl\")","v":"Ok"},{"$f":"IF(OR(M12=\"?\",N12=\"?\"),\"Ok\",\"Fejl\")","v":"Ok"},null,null,null,null,null,null,null,"  UNDER"]
[null,null,null,null,"Nulstil e-f-g-h  ' TRYK >> Crtl + l  << '"]
[null,null,null,null,"Nulstil alt        ' TRYK >> Crtl + c << '"]
[]
[null,null,null,null,null,null,null,null,null,null,null,null,null,null,null,null,"Set fra ød      'blå ende'     ' Grøn er længst væk'"]
[null,null,null,null,null,null,null,null,null,null,null,null,null,null,null,null,"e_venstre",null,null,null,"f_højre"]
[null,null,null,null,null,null,null,null,null,null,null,null,null,null,null,null,null,null,{"$f":"E12","v":0}]
[]
[null,null,null,null,null,null,null,null,null,null,null,null,null,null,null,null,null,null,null,null,null,"h_over"]
[]
[]
[]
[]
[]
[null,null,null,null,null,null,null,null,null,null,null,null,null,null,null,null,null,null,{"$f":"J12","v":0},null,null,{"$f":"V12","v":0}]
[]
[]
[]
[]
[]
[null,null,null,null,null,null,null,null,null,null,null,null,null,null,null,null,null,null,null,null,null,"g_under"]

{"sheet":"Ark2","index":1,"n_rows":0,"n_cols":0,"rows_kept":0,"cut":false,"hidden":false,"merged":[]}